bitfinex/quotes_BTCUSD_20250901
["timestamp","ask_amount","ask_price","bid_price","bid_amount"]
[1756724858468,0.5149359,108820.0,108810.0,0.23001819]
[1756724858672,0.47812516,108820.0,108810.0,0.38299819]
[1756724858866,0.00147353,108820.0,108810.0,0.38513819]
[1756724859067,0.29733542,108820.0,108810.0,0.38513819]
[1756724859437,0.29433542,108820.0,108810.0,0.38513819]
[1756724859883,0.29533542,108820.0,108810.0,0.38513819]
[1756724860805,0.00247353,108820.0,108810.0,0.38513819]
[1756724862627,0.00247353,108820.0,108810.0,0.67800008]
[1756724863409,0.00247353,108820.0,108810.0,0.38513819]
[1756724863933,0.00247353,108820.0,108810.0,0.67800008]
[1756724864300,0.00247353,108820.0,108810.0,0.38513819]
[1756724865753,0.00247353,108820.0,108810.0,0.67800008]
[1756724866156,0.00247353,108820.0,108810.0,0.68720336]
[1756724866358,0.00247353,108820.0,108810.0,0.53208336]
[1756724866557,0.00147353,108820.0,108810.0,0.23922147]
[1756724866758,0.00047353,108820.0,108810.0,0.39430147]
[1756724867132,0.00047353,108820.0,108810.0,0.39530147]
[1756724867570,0.00047353,108820.0,108810.0,0.39630147]
[1756724867912,0.00047353,108820.0,108810.0,0.53408336]
[1756724868076,0.00047353,108820.0,108810.0,0.24122147]
[1756724868241,0.00047353,108820.0,108810.0,0.38709819]
[1756724868454,0.29333542,108820.0,108810.0,0.38709819]
[1756724868994,0.00047353,108820.0,108810.0,0.38709819]
[1756724869435,0.00047353,108820.0,108810.0,0.67996008]
[1756724869650,0.00047353,108820.0,108810.0,0.68936526]
[1756724870057,0.00047353,108820.0,108810.0,0.39650337]
[1756724870268,0.00047353,108820.0,108810.0,0.68936526]
[1756724871897,0.00047353,108820.0,108810.0,1.02936526]
[1756724872723,0.00047353,108820.0,108810.0,1.03304626]
[1756724872932,0.00047353,108820.0,108810.0,1.04154626]
[1756724875506,0.00047353,108820.0,108810.0,1.03304626]
[1756724876190,0.00047353,108820.0,108810.0,0.87796626]
[1756724876438,0.00047353,108820.0,108810.0,1.27796626]
[1756724876608,0.00047353,108820.0,108810.0,1.43300626]
[1756724877942,0.00047353,108820.0,108810.0,1.49876626]
[1756724878293,0.00047353,108820.0,108810.0,1.65380626]
[1756724880681,0.00047353,108820.0,108810.0,1.66230626]
[1756724881531,0.00047353,108820.0,108810.0,1.95516815]
[1756724881730,0.00047353,108820.0,108810.0,1.80012815]
[1756724881951,0.00047353,108820.0,108810.0,1.95512815]
[1756724883060,0.00047353,108820.0,108810.0,1.91403659]
[1756724883579,1e-08,108820.0,108810.0,1.93497541]
[1756724883796,1e-08,108820.0,108810.0,1.93501541]
[1756724884009,1e-08,108820.0,108810.0,1.6212147]
[1756724884217,1e-08,108820.0,108810.0,1.6712947]
[1756724884432,1e-08,108820.0,108810.0,1.6702947]
[1756724884679,1e-08,108820.0,108810.0,1.6703347]
[1756724884895,1e-08,108820.0,108810.0,1.5191747]
[1756724885104,1e-08,108820.0,108810.0,1.6743347]
[1756724885315,1e-08,108820.0,108810.0,1.6703347]
[1756724885532,1e-08,108820.0,108810.0,1.6743347]
[1756724885651,1e-08,108820.0,108810.0,1.5181747]
[1756724885872,1e-08,108820.0,108810.0,1.6753347]
[1756724886080,1e-08,108820.0,108810.0,1.5201747]
[1756724886520,1e-08,108820.0,108810.0,1.38051281]
[1756724886716,1e-08,108820.0,108810.0,0.98051281]
[1756724886920,1e-08,108820.0,108810.0,0.98351281]
[1756724887128,1e-08,108820.0,108810.0,0.92501281]
[1756724887336,1e-08,108820.0,108810.0,1.2178747]
[1756724887544,1e-08,108820.0,108810.0,0.92501281]
[1756724887759,1e-08,108820.0,108810.0,0.61980848]
[1756724887993,1e-08,108820.0,108810.0,0.45798748]
[1756724888204,0.76951353,108820.0,108810.0,0.003]
[1756724888418,1.13045235,108820.0,108810.0,0.003]
[1756724888643,1.18045235,108820.0,108810.0,0.003]
[1756724888856,0.18383858,108800.0,108780.0,0.31941704]
[1756724889062,0.47670231,108790.0,108780.0,0.31941704]
[1756724889282,0.18384042,108790.0,108780.0,0.13556]
[1756724889714,0.47670231,108790.0,108780.0,0.13556]
[1756724889976,0.21346358,108800.0,108780.0,0.32702553]
[1756724890214,0.21346358,108800.0,108790.0,0.07064]
[1756724890422,0.47870047,108800.0,108790.0,0.07064]
[1756724890632,0.50432147,108800.0,108790.0,0.07064]
[1756724890878,0.50432147,108800.0,108790.0,0.25448042]
[1756724891292,0.47669766,108810.0,108790.0,0.25979042]
[1756724891493,0.47669766,108810.0,108800.0,0.15644]
[1756724893162,0.47969766,108810.0,108800.0,0.15644]
[1756724893377,0.48469766,108810.0,108800.0,0.15644]
[1756724896266,0.18382352,108800.0,108790.0,0.25447916]
[1756724896468,0.47668541,108800.0,108790.0,0.41075916]
[1756724896830,0.47668541,108800.0,108790.0,0.22692]
[1756724897035,0.47668541,108800.0,108790.0,0.07064]
[1756724897263,0.47668541,108800.0,108790.0,0.22688]
[1756724897447,0.47968541,108800.0,108790.0,0.41072042]
[1756724897851,0.18682352,108800.0,108790.0,0.41072042]
[1756724898050,0.47968541,108800.0,108790.0,0.41072042]
[1756724898307,0.47968541,108800.0,108790.0,0.41603042]
[1756724898764,0.47968541,108800.0,108790.0,0.07064]
[1756724898975,0.47968541,108800.0,108790.0,0.22684]
[1756724899392,0.48168541,108800.0,108790.0,0.22684]
[1756724900232,0.48168541,108800.0,108790.0,0.07064]
[1756724900438,0.48168541,108800.0,108790.0,0.2268]
[1756724900849,0.50930841,108800.0,108790.0,0.2268]
[1756724901061,0.50930841,108800.0,108790.0,0.22676]
[1756724901268,0.50930841,108800.0,108790.0,0.07064]
[1756724901487,0.50930841,108800.0,108790.0,0.22676]
[1756724903019,0.50930841,108800.0,108790.0,0.07064]
[1756724903238,0.50930841,108800.0,108790.0,0.22676]
[1756724904346,0.18385732,108780.0,108770.0,0.30826236]
[1756724904516,0.47671921,108780.0,108770.0,0.46631236]
[1756724905702,0.47671695,108790.0,108780.0,0.18385732]
[1756724905920,0.47671695,108790.0,108780.0,0.18582732]
[1756724906118,0.47670231,108790.0,108780.0,0.18905732]
[1756724906988,0.47770231,108790.0,108780.0,0.18905732]
[1756724907432,0.47970231,108790.0,108780.0,0.18905732]
[1756724908555,0.47970231,108790.0,108780.0,0.0052]
[1756724909254,0.47970231,108790.0,108780.0,0.00323]
[1756724910128,0.47970231,108790.0,108780.0,0.18385732]
[1756724910329,0.47970231,108790.0,108780.0,0.18905732]
[1756724913595,0.47970231,108790.0,108780.0,0.34489732]
[1756724913859,0.47970231,108790.0,108780.0,0.18905732]
[1756724914023,0.47970231,108790.0,108780.0,0.34481732]
[1756724914876,0.18385732,108780.0,108770.0,0.07111352]
[1756724915112,0.47671921,108780.0,108770.0,0.22683352]
[1756724915512,0.47671921,108780.0,108770.0,0.23006352]
[1756724915961,0.47671921,108780.0,108770.0,0.07111352]
[1756724916172,0.47771921,108780.0,108770.0,0.22699352]
[1756724916788,0.47771921,108780.0,108770.0,0.07111352]
[1756724916992,0.47771921,108780.0,108770.0,0.22699352]
[1756724917756,0.47771921,108780.0,108770.0,0.22691352]
[1756724917961,0.47771921,108780.0,108770.0,0.07111352]
[1756724918162,0.79151992,108780.0,108770.0,0.00047352]
[1756724919014,0.94735992,108780.0,108770.0,0.00047352]
[1756724919593,0.95035992,108780.0,108770.0,0.00047352]
[1756724920307,0.94935992,108780.0,108770.0,0.00047352]
[1756724920683,0.95335992,108780.0,108770.0,0.00047352]
[1756724922275,0.95331992,108780.0,108770.0,0.00047352]
[1756724923944,0.95319992,108780.0,108770.0,0.00047352]
[1756724927657,0.95307992,108780.0,108770.0,0.00047352]
[1756724930500,1.29307992,108780.0,108770.0,0.00047352]
[1756724930901,1.13751992,108780.0,108770.0,0.00047352]
[1756724931184,1.29303992,108780.0,108770.0,0.00047352]
[1756724931393,1.13751992,108780.0,108770.0,0.00047352]
[1756724931599,1.29299992,108780.0,108770.0,0.00047352]
[1756724933277,1.32063292,108780.0,108770.0,0.00047352]
[1756724933848,0.84465803,108780.0,108770.0,0.00569352]
[1756724934075,0.19085732,108780.0,108770.0,0.00569352]
[1756724934282,0.19085732,108780.0,108770.0,0.18956775]
[1756724934490,0.48371921,108780.0,108770.0,0.00569352]
[1756724934898,0.47971921,108780.0,108770.0,0.00569352]
[1756724935324,0.48071921,108780.0,108770.0,0.00569352]
[1756724936138,0.47771921,108780.0,108770.0,0.18956775]
[1756724936352,0.47771921,108780.0,108770.0,0.00569352]
[1756724936559,0.47871921,108780.0,108770.0,0.00569352]
[1756724936763,0.47871921,108780.0,108770.0,0.01680252]
[1756724937376,0.18585732,108780.0,108770.0,0.20067675]
[1756724938292,0.002,108780.0,108770.0,0.27135675]
[1756724938913,0.18585732,108780.0,108770.0,0.27135675]
[1756724939114,0.18585732,108780.0,108770.0,0.46756531]
[1756724939511,0.18485732,108780.0,108770.0,0.46756531]
[1756724939650,0.47671921,108780.0,108770.0,0.46756531]
[1756724939862,0.18385732,108780.0,108770.0,0.46756531]
[1756724940105,0.47771921,108780.0,108770.0,0.46756531]
[1756724940806,0.47771921,108780.0,108770.0,0.31216531]
[1756724941104,0.7695811,108780.0,108770.0,0.08532252]
[1756724941356,0.7695811,108780.0,108770.0,0.16690252]
[1756724941598,0.47671921,108780.0,108770.0,0.01464252]
[1756724941825,0.47671921,108780.0,108770.0,0.17000252]
[1756724942041,0.18385732,108780.0,108770.0,0.01680252]
[1756724942490,0.47671921,108780.0,108770.0,0.01680252]
[1756724942948,0.47671921,108780.0,108770.0,0.20067675]
[1756724944533,0.47671921,108780.0,108770.0,0.01680252]
[1756724945160,0.47671921,108780.0,108770.0,0.17204252]
[1756724945379,0.47671921,108780.0,108770.0,0.16988252]
[1756724945535,0.47671921,108780.0,108770.0,0.17204252]
[1756724945942,0.47671921,108780.0,108770.0,0.16988252]
[1756724946545,0.47671921,108780.0,108770.0,0.17204252]
[1756724948247,0.47671921,108780.0,108770.0,0.35591675]
[1756724948455,0.47671921,108780.0,108770.0,0.17204252]
[1756724948655,0.18385732,108780.0,108770.0,0.17204252]
[1756724948861,0.47671921,108780.0,108770.0,0.17204252]
[1756724949066,0.18385732,108780.0,108770.0,0.17204252]
[1756724949277,0.47671921,108780.0,108770.0,0.35591675]
[1756724949450,0.18385732,108780.0,108770.0,0.35591675]
[1756724949662,0.47671921,108780.0,108770.0,0.35591675]
[1756724951420,0.47671921,108780.0,108770.0,0.17204252]
[1756724951653,0.47671921,108780.0,108770.0,0.17200252]
[1756724952673,0.18385732,108780.0,108770.0,0.17200252]
[1756724954255,0.18385732,108780.0,108770.0,0.35587675]
[1756724954666,0.18385732,108780.0,108770.0,0.64873864]
[1756724954874,0.18384042,108790.0,108780.0,0.18385732]
[1756724955061,0.18384042,108790.0,108780.0,0.47977921]
[1756724955261,0.18384042,108790.0,108780.0,0.16042]
[1756724955892,0.18384042,108790.0,108780.0,0.00522]
[1756724956063,0.18384042,108790.0,108770.0,0.08226252]
[1756724956064,0.18385732,108780.0,108770.0,0.08226252]
[1756724956260,0.18385732,108780.0,108770.0,0.24268252]
[1756724957131,0.18385732,108780.0,108770.0,0.08748252]
[1756724957344,0.18385732,108780.0,108770.0,0.24268252]
[1756724957546,0.18385732,108780.0,108770.0,0.08748252]
[1756724957779,0.47671921,108780.0,108770.0,0.24052252]
[1756724957956,0.18385732,108780.0,108770.0,0.24052252]
[1756724958197,0.18385732,108780.0,108770.0,0.24268252]
[1756724958424,0.18385732,108780.0,108770.0,0.42655675]
[1756724958604,0.18385732,108780.0,108770.0,0.46714172]
[1756724959018,0.18385732,108780.0,108770.0,0.28330749]
[1756724960236,0.18385732,108780.0,108770.0,0.12806749]
[1756724960446,0.47671921,108780.0,108770.0,0.23754252]
[1756724960693,0.47671921,108780.0,108770.0,0.01158252]
[1756724960866,0.47671921,108780.0,108770.0,0.16686252]
[1756724962646,0.47671921,108780.0,108770.0,0.01158252]
[1756724963186,0.47971921,108780.0,108770.0,0.01158252]
[1756724963825,0.48071921,108780.0,108770.0,0.01158252]
[1756724965015,0.47971921,108780.0,108770.0,0.01158252]
[1756724965996,0.48171921,108780.0,108770.0,0.01158252]
[1756724966193,0.18885732,108780.0,108770.0,0.01158252]
[1756724966410,0.48171921,108780.0,108770.0,0.01158252]
[1756724966611,0.63691921,108780.0,108770.0,0.01158252]
[1756724967428,1.29071992,108780.0,108770.0,0.01158252]
[1756724969450,1.13551992,108780.0,108770.0,0.01158252]
[1756724969616,1.16315492,108780.0,108770.0,0.01158252]
[1756724969821,1.31835492,108780.0,108770.0,0.01158252]
[1756724971578,1.16315492,108780.0,108770.0,0.01158252]
[1756724971782,1.31835492,108780.0,108770.0,0.01158252]
[1756724972242,1.02549303,108780.0,108770.0,0.01158252]
[1756724972445,1.16315492,108780.0,108770.0,0.01158252]
[1756724972645,1.31835492,108780.0,108770.0,0.01158252]
[1756724973346,1.16315492,108780.0,108770.0,0.01158252]
[1756724973564,1.02549303,108780.0,108770.0,0.01688252]
[1756724973771,0.73263114,108780.0,108770.0,0.01688252]
[1756724973989,1.02549303,108780.0,108770.0,0.01688252]
[1756724974960,0.87029303,108780.0,108770.0,0.01688252]
[1756724975164,0.87029303,108780.0,108770.0,0.01158252]
[1756724975379,0.68409732,108780.0,108770.0,0.01688252]
[1756724979097,0.71172732,108780.0,108770.0,0.01688252]
[1756724979303,0.55648732,108780.0,108770.0,0.01688252]
[1756724981199,0.21648732,108780.0,108770.0,0.20075675]
[1756724981402,0.21648732,108780.0,108770.0,0.49361864]
[1756724981809,0.21648732,108780.0,108770.0,0.20075675]
[1756724982896,0.005,108780.0,108770.0,0.49361864]
[1756724983667,0.18885732,108780.0,108770.0,0.49361864]
[1756724983872,0.17640386,108790.0,108770.0,0.49361864]
[1756724984116,0.18385732,108780.0,108770.0,0.49045864]
[1756724984529,0.17640386,108790.0,108770.0,0.49045864]
[1756724984729,0.17640386,108790.0,108780.0,0.34225732]
[1756724984924,0.17640386,108790.0,108780.0,0.63725921]
[1756724985215,0.17940386,108790.0,108780.0,0.63725921]
[1756724985420,0.17940386,108790.0,108780.0,0.34439732]
[1756724985775,0.17640386,108790.0,108780.0,0.34439732]
[1756724986192,0.17840386,108790.0,108780.0,0.34439732]
[1756724986401,0.17840386,108790.0,108780.0,0.0053]
[1756724986607,0.17940386,108790.0,108780.0,0.16054]
[1756724986811,0.17640386,108790.0,108780.0,0.34439732]
[1756724987487,0.17640386,108790.0,108780.0,0.16054]
[1756724988299,0.17640386,108790.0,108780.0,0.34439732]
[1756724988517,0.17640386,108790.0,108780.0,0.16054]
[1756724988740,0.17640386,108790.0,108780.0,0.34669553]
[1756724988914,0.17640386,108790.0,108780.0,0.0053]
[1756724989112,0.17640386,108790.0,108780.0,0.16086]
[1756724989898,0.17640386,108790.0,108780.0,0.34471732]
[1756724990907,0.17640386,108790.0,108780.0,0.16086]
[1756724993194,0.17640386,108790.0,108780.0,0.34471732]
[1756724993364,0.17640386,108790.0,108780.0,0.18915732]
[1756724993566,0.17640386,108790.0,108780.0,0.16074]
[1756724994392,0.17640386,108790.0,108780.0,0.0053]
[1756724994578,0.17640386,108790.0,108780.0,0.1607]
[1756724996434,0.17640386,108790.0,108780.0,0.34455732]
[1756724996640,0.17640386,108790.0,108780.0,0.1607]
[1756724999726,0.17640386,108790.0,108780.0,0.16062]
[1756725002021,0.17640386,108790.0,108780.0,0.16058]
[1756725003490,0.18385732,108780.0,108770.0,0.08540252]
[1756725003726,0.47671921,108780.0,108770.0,0.23750252]
[1756725004206,0.21148432,108780.0,108770.0,0.24064252]
[1756725004872,0.21148432,108780.0,108770.0,0.24274252]
[1756725006008,0.21148432,108780.0,108770.0,0.24286252]
[1756725006982,0.21248432,108780.0,108770.0,0.24286252]
[1756725007845,0.50534621,108780.0,108770.0,0.08540252]
[1756725008016,0.50534621,108780.0,108770.0,0.24076252]
[1756725008164,0.21248432,108780.0,108770.0,0.24076252]
[1756725008583,0.21248432,108780.0,108770.0,0.24286252]
[1756725009978,0.50534621,108780.0,108770.0,0.08226252]
[1756725010183,1.31442692,108780.0,108770.0,0.01158252]
[1756725011744,1.36442692,108780.0,108770.0,0.01158252]
[1756725012153,1.36742692,108780.0,108770.0,0.01158252]
[1756725012360,1.36642692,108780.0,108770.0,0.01158252]
[1756725012566,1.36658692,108780.0,108770.0,0.01158252]
[1756725012777,1.21114692,108780.0,108770.0,0.01158252]
[1756725012987,1.36554692,108780.0,108770.0,0.01158252]
[1756725013166,1.36558692,108780.0,108770.0,0.01158252]
[1756725013414,1.36758692,108780.0,108770.0,0.01158252]
[1756725014034,1.21514692,108780.0,108770.0,0.01158252]
[1756725014265,1.37054692,108780.0,108770.0,0.01158252]
[1756725015443,1.37054692,108780.0,108720.0,0.18709877]
[1756725015444,0.18394187,108730.0,108720.0,0.18709877]
[1756725015678,0.18394187,108730.0,108720.0,0.3446061]
[1756725016550,0.18394187,108730.0,108720.0,0.1892461]
[1756725016784,0.18394187,108730.0,108720.0,0.3476461]
[1756725016993,0.18394187,108730.0,108720.0,0.3496461]
[1756725017167,0.21156195,108740.0,108730.0,0.18394187]
[1756725017561,0.21156195,108740.0,108730.0,0.18918187]
[1756725018086,0.027637,108740.0,108730.0,0.48204376]
[1756725018293,0.21156195,108740.0,108730.0,0.48204376]
[1756725018691,0.21156195,108740.0,108730.0,0.48304376]
[1756725018692,0.027637,108740.0,108730.0,0.48304376]
[1756725018906,0.027637,108740.0,108730.0,0.55372376]
[1756725019123,0.19311536,108760.0,108740.0,0.18391209]
[1756725019308,0.027635,108750.0,108740.0,0.63217398]
[1756725019550,0.027635,108750.0,108740.0,0.63741398]
[1756725019782,0.027635,108750.0,108740.0,0.34455209]
[1756725019935,0.21154304,108750.0,108740.0,0.34455209]
[1756725020134,0.027635,108750.0,108740.0,0.63741398]
[1756725020348,0.21154304,108750.0,108740.0,0.63741398]
[1756725020571,0.21154304,108750.0,108740.0,0.34455209]
[1756725027349,0.18390804,108750.0,108740.0,0.34455209]
[1756725029451,0.18390804,108750.0,108740.0,0.00524]
[1756725029657,0.18390804,108750.0,108740.0,0.34444495]
[1756725031027,0.18390804,108750.0,108740.0,0.63730684]
[1756725031232,0.21152713,108760.0,108750.0,0.18390804]
[1756725031437,0.18389113,108760.0,108750.0,0.47676993]
[1756725031649,0.18389113,108760.0,108750.0,0.48195993]
[1756725031954,0.18389113,108760.0,108750.0,0.18909804]
[1756725034170,0.19321783,108760.0,108750.0,0.18909804]
[1756725034686,0.19421783,108760.0,108750.0,0.18909804]
[1756725035089,0.19321783,108760.0,108750.0,0.18909804]
[1756725035648,0.18389113,108760.0,108750.0,0.18909804]
[1756725037644,0.18389113,108760.0,108750.0,0.16043]
[1756725038038,0.18389113,108760.0,108750.0,0.34433804]
[1756725038617,0.21154885,108770.0,108760.0,0.18389113]
[1756725038827,0.19305018,108780.0,108760.0,0.48424165]
[1756725039165,0.19305018,108780.0,108770.0,0.1584]
[1756725039374,0.18385732,108780.0,108770.0,0.34227423]
[1756725039578,0.18385732,108780.0,108770.0,0.34430423]
[1756725040012,0.22984715,108790.0,108770.0,0.63716612]
[1756725040224,0.18385732,108780.0,108770.0,0.18590423]
[1756725040433,0.18385732,108780.0,108770.0,0.34114423]
[1756725040665,0.18685732,108780.0,108770.0,0.34114423]
[1756725040882,0.18685732,108780.0,108770.0,0.34430423]
[1756725041910,0.18385732,108780.0,108770.0,0.34430423]
[1756725055893,0.18385732,108780.0,108770.0,0.34426423]
[1756725060511,0.18385732,108780.0,108770.0,0.63712612]
[1756725060941,0.18385732,108780.0,108770.0,0.18906423]
[1756725061275,0.18385732,108780.0,108770.0,0.34426423]
[1756725062490,0.18385732,108780.0,108770.0,0.18906423]
[1756725062719,0.18385732,108780.0,108770.0,0.34426423]
[1756725068229,0.18385732,108780.0,108770.0,0.00519]
[1756725068450,0.18387423,108770.0,108750.0,0.27228344]
[1756725068667,0.47673612,108770.0,108760.0,0.1552]
[1756725068871,0.18387423,108770.0,108760.0,0.1552]
[1756725069292,0.18387423,108770.0,108760.0,0.34420113]
[1756725069711,0.18389113,108760.0,108750.0,0.26790075]
[1756725069914,0.18389113,108760.0,108750.0,0.42510075]
[1756725070338,0.18387423,108770.0,108750.0,0.42510075]
[1756725070541,0.18387423,108770.0,108760.0,0.18389113]
[1756725070953,0.18387423,108770.0,108750.0,0.42306075]
[1756725071162,0.18387423,108770.0,108760.0,0.00307]
[1756725071367,0.18387423,108770.0,108760.0,0.00407]
[1756725071947,0.18387423,108770.0,108760.0,0.00507]
[1756725072368,0.18387423,108770.0,108760.0,0.002]
[1756725072809,0.47673612,108770.0,108760.0,0.002]
[1756725073239,0.50436812,108770.0,108760.0,0.002]
[1756725073657,0.86530694,108770.0,108760.0,0.002]
[1756725074070,1.02046694,108770.0,108760.0,0.002]
[1756725074294,1.02046694,108770.0,108760.0,0.001]
[1756725074652,1.02146694,108770.0,108760.0,0.001]
[1756725074861,1.02046694,108770.0,108760.0,0.001]
[1756725075271,0.18389113,108760.0,108750.0,4.731e-05]
[1756725075478,0.47675302,108760.0,108750.0,4.731e-05]
[1756725075899,0.63191302,108760.0,108750.0,4.731e-05]
[1756725076268,0.47675302,108760.0,108750.0,4.731e-05]
[1756725076461,0.63291302,108760.0,108750.0,4.731e-05]
[1756725077684,0.63391302,108760.0,108750.0,4.731e-05]
[1756725078843,0.66154802,108760.0,108750.0,4.731e-05]
[1756725080470,0.50638802,108760.0,108750.0,4.731e-05]
[1756725080702,0.66158802,108760.0,108750.0,4.731e-05]
[1756725081512,0.21352613,108760.0,108750.0,4.731e-05]
[1756725081732,0.34109113,108760.0,108750.0,0.00515731]
[1756725081938,0.63395302,108760.0,108750.0,4.731e-05]
[1756725082314,0.47875302,108760.0,108750.0,4.731e-05]
[1756725083556,0.50638802,108760.0,108750.0,4.731e-05]
[1756725083711,0.86732684,108760.0,108750.0,4.731e-05]
[1756725084160,1.02252684,108760.0,108750.0,4.731e-05]
[1756725085342,0.86732684,108760.0,108750.0,4.731e-05]
[1756725085557,1.02252684,108760.0,108750.0,4.731e-05]
[1756725085955,0.86732684,108760.0,108750.0,4.731e-05]
[1756725086167,1.02252684,108760.0,108750.0,4.731e-05]
[1756725086622,0.72966495,108760.0,108750.0,4.731e-05]
[1756725086849,0.57446495,108760.0,108750.0,4.731e-05]
[1756725087047,1.02252684,108760.0,108750.0,4.731e-05]
[1756725087940,0.57446495,108760.0,108750.0,0.00307731]
[1756725088119,1.02252684,108760.0,108750.0,0.00307731]
[1756725088327,0.70872613,108760.0,108750.0,0.00514731]
[1756725088541,0.55352613,108760.0,108750.0,0.00514731]
[1756725089812,0.84638802,108760.0,108750.0,0.00514731]
[1756725090610,0.50638802,108760.0,108750.0,0.00514731]
[1756725090822,0.21352613,108760.0,108750.0,0.00514731]
[1756725093639,0.21083622,108760.0,108750.0,0.00514731]
[1756725096011,0.002,108760.0,108750.0,0.48191724]
[1756725096236,0.18589113,108760.0,108750.0,0.34429535]
[1756725097168,0.001,108760.0,108750.0,0.34429535]
[1756725097432,0.002,108760.0,108750.0,0.63715724]
[1756725097642,0.47875302,108760.0,108750.0,0.00307731]
[1756725097848,0.18489113,108760.0,108750.0,0.00514731]
[1756725098057,0.18389113,108760.0,108750.0,0.18905535]
[1756725098269,0.18489113,108760.0,108750.0,0.18905535]
[1756725098477,0.18489113,108760.0,108750.0,0.00514731]
[1756725098685,0.18389113,108760.0,108750.0,0.16034731]
[1756725100589,0.18389113,108760.0,108750.0,0.00514731]
[1756725100868,0.47675302,108760.0,108750.0,0.00514731]
[1756725101117,0.49769184,108760.0,108750.0,4.731e-05]
[1756725101360,0.83769184,108760.0,108750.0,4.731e-05]
[1756725101611,1.13055373,108760.0,108750.0,4.731e-05]
[1756725101834,0.83769184,108760.0,108750.0,4.731e-05]
[1756725102086,1.20123373,108760.0,108750.0,4.731e-05]
[1756725102511,1.20223373,108760.0,108750.0,4.731e-05]
[1756725103357,1.25223373,108760.0,108750.0,4.731e-05]
[1756725103567,1.30223373,108760.0,108750.0,4.731e-05]
[1756725103792,1.30123373,108760.0,108750.0,4.731e-05]
[1756725104224,1.30423373,108760.0,108750.0,4.731e-05]
[1756725104766,1.30823373,108760.0,108750.0,4.731e-05]
[1756725104988,1.30423373,108760.0,108750.0,4.731e-05]
[1756725105404,1.30823373,108760.0,108750.0,4.731e-05]
[1756725106681,1.25823373,108760.0,108750.0,4.731e-05]
[1756725107111,1.12097184,108760.0,108750.0,4.731e-05]
[1756725107755,1.07097184,108760.0,108750.0,4.731e-05]
[1756725108736,0.77810995,108760.0,108750.0,0.00307731]
[1756725108954,1.07097184,108760.0,108750.0,0.00307731]
[1756725109360,1.07097184,108760.0,108750.0,4.731e-05]
[1756725109782,0.55853113,108760.0,108750.0,0.00514731]
[1756725110000,0.71425113,108760.0,108750.0,0.00514731]
[1756725110213,1.00711302,108760.0,108750.0,0.00514731]
[1756725110841,1.02505184,108760.0,108750.0,0.00514731]
[1756725111056,1.02105184,108760.0,108750.0,0.00514731]
[1756725111266,1.02305184,108760.0,108750.0,0.00514731]
[1756725111475,1.02605184,108760.0,108750.0,0.00514731]
[1756725112896,0.57746995,108760.0,108750.0,0.00514731]
[1756725113099,0.55653113,108760.0,108750.0,0.00514731]
[1756725113315,0.71217113,108760.0,108750.0,0.00514731]
[1756725113945,1.00503302,108760.0,108750.0,0.00514731]
[1756725114850,1.00503302,108760.0,108750.0,4.731e-05]
[1756725114851,1.31883373,108760.0,108750.0,4.731e-05]
[1756725115996,1.02597184,108760.0,108750.0,4.731e-05]
[1756725116207,1.46587184,108760.0,108750.0,4.731e-05]
[1756725116771,1.31023184,108760.0,108750.0,4.731e-05]
[1756725116999,1.46579184,108760.0,108750.0,0.00524731]
[1756725117851,1.46579184,108760.0,108750.0,0.00316731]
[1756725118062,1.46579184,108760.0,108750.0,4.731e-05]
[1756725123662,1.46579184,108760.0,108750.0,0.00524731]
[1756725123663,1.17276995,108760.0,108750.0,0.00524731]
[1756725123877,1.46563184,108760.0,108750.0,0.00524731]
[1756725126151,0.99643113,108760.0,108750.0,0.00524731]
[1756725126298,0.65643113,108760.0,108750.0,0.00524731]
[1756725126496,0.62879113,108760.0,108750.0,0.2981092]
[1756725126697,0.62879113,108760.0,108750.0,0.00524731]
[1756725126902,0.62879113,108760.0,108750.0,0.18915535]
[1756725127116,0.62879113,108760.0,108750.0,0.00524731]
[1756725127324,0.62679113,108760.0,108750.0,0.00524731]
[1756725127543,0.62379113,108760.0,108750.0,0.00524731]
[1756725127758,0.47775302,108760.0,108750.0,0.00524731]
[1756725127966,0.63415302,108760.0,108750.0,0.00524731]
[1756725128185,0.66178802,108760.0,108750.0,0.00524731]
[1756725128624,0.66182802,108760.0,108750.0,0.00524731]
[1756725128854,0.50638802,108760.0,108750.0,0.00524731]
[1756725129212,0.66182802,108760.0,108750.0,0.00524731]
[1756725129535,0.68276684,108760.0,108750.0,4.731e-05]
[1756725129741,0.68276684,108760.0,108750.0,0.00524731]
[1756725130108,0.52732684,108760.0,108750.0,0.00524731]
[1756725130311,0.68272684,108760.0,108750.0,0.00524731]
[1756725130539,0.68272684,108760.0,108750.0,0.00316731]
[1756725130929,0.68276684,108760.0,108750.0,0.00524731]
[1756725132168,0.36892613,108760.0,108750.0,0.00524731]
[1756725132558,0.21352613,108760.0,108750.0,0.00524731]
[1756725132784,0.50638802,108760.0,108750.0,0.00524731]
[1756725134018,0.21352613,108760.0,108750.0,0.00524731]
[1756725134439,0.50638802,108760.0,108750.0,0.00524731]
[1756725135073,0.21352613,108760.0,108750.0,0.00524731]
[1756725135284,0.50638802,108760.0,108750.0,0.00524731]
[1756725135499,0.30828297,108760.0,108750.0,0.00524731]
[1756725135718,0.4921741,108760.0,108750.0,0.00524731]
[1756725135936,0.19931221,108760.0,108750.0,0.00524731]
[1756725139267,0.4921741,108760.0,108750.0,0.00524731]
[1756725140082,0.19931221,108760.0,108750.0,0.00524731]
[1756725140297,0.4921741,108760.0,108750.0,0.00524731]
[1756725141757,0.19931221,108760.0,108750.0,0.00524731]
[1756725143044,0.18956575,108760.0,108750.0,0.00524731]
[1756725143827,0.18389113,108760.0,108750.0,0.00524731]
[1756725145714,0.65977012,108770.0,108750.0,0.00524731]
[1756725145924,0.18389113,108760.0,108750.0,0.00524731]
[1756725147389,0.18389113,108760.0,108750.0,0.1914542]
[1756725147600,0.18389113,108760.0,108750.0,0.18915535]
[1756725148446,0.18387423,108770.0,108760.0,0.18389113]
[1756725148659,0.18387423,108770.0,108760.0,0.18591113]
[1756725148876,0.18387423,108770.0,108760.0,0.18884113]
[1756725150579,0.18387423,108770.0,108760.0,0.34408113]
[1756725150910,0.004,108770.0,108760.0,0.34408113]
[1756725151124,0.18787423,108770.0,108760.0,0.34408113]
[1756725153013,0.18787423,108770.0,108760.0,0.18884113]
[1756725153319,0.18389113,108760.0,108750.0,0.22871188]
[1756725153536,0.47675302,108760.0,108750.0,0.38597188]
[1756725153713,0.47675302,108760.0,108750.0,0.20206384]
[1756725154273,0.18389113,108760.0,108750.0,0.20206384]
[1756725154489,0.18589113,108760.0,108750.0,0.20206384]
[1756725154689,0.47875302,108760.0,108750.0,0.16023731]
[1756725154896,0.47875302,108760.0,108750.0,0.34414535]
[1756725155072,0.18589113,108760.0,108750.0,0.34414535]
[1756725155497,0.18589113,108760.0,108750.0,0.16023731]
[1756725155740,0.18589113,108760.0,108750.0,0.00499731]
[1756725155946,0.18589113,108760.0,108750.0,0.16023731]
[1756725156915,0.18589113,108760.0,108750.0,0.34414535]
[1756725158197,0.18589113,108760.0,108750.0,0.16023731]
[1756725158408,0.47875302,108760.0,108750.0,0.00499731]